[Event "Late-Titled-Tuesday-Blitz-October-03-2023"]
[Site "Chess.com"]
[Date "2023.10.03"]
[Round "6"]
[White "Aswathchess"]
[Black "Vegan4future"]
[Result "1-0"]
[WhiteElo "2599"]
[BlackElo "2402"]
[TimeControl "180+1"]
[EndTime "15:05:04 PDT"]
[Termination "Aswathchess won by checkmate"]

1. d4 {[%clk 0:03:00.9]} 1... d5 {[%clk 0:03:00]} 2. c4 {[%clk 0:03:01]} 2... c6
{[%clk 0:03:00.2]} 3. Nf3 {[%clk 0:03:00.5]} 3... Nf6 {[%clk 0:03:00.1]} 4. Qc2
{[%clk 0:02:55.4]} 4... dxc4 {[%clk 0:02:59.5]} 5. Qxc4 {[%clk 0:02:55.1]} 5...
Bf5 {[%clk 0:02:59.9]} 6. g3 {[%clk 0:02:52.4]} 6... Nbd7 {[%clk 0:02:58.2]} 7.
Bg2 {[%clk 0:02:52]} 7... e6 {[%clk 0:02:58.6]} 8. O-O {[%clk 0:02:51.8]} 8...
Be7 {[%clk 0:02:58.7]} 9. Nc3 {[%clk 0:02:51.9]} 9... Ne4 {[%clk 0:02:58.8]} 10.
Nh4 {[%clk 0:02:49.3]} 10... Bxh4 {[%clk 0:02:58.3]} 11. Nxe4 {[%clk 0:02:42.9]}
11... Be7 {[%clk 0:02:56.7]} 12. Qb3 {[%clk 0:02:41.1]} 12... Nb6 {[%clk
0:02:54.9]} 13. e3 {[%clk 0:02:35.4]} 13... O-O {[%clk 0:02:54]} 14. Bd2 {[%clk
0:02:33.9]} 14... h5 {[%clk 0:02:49.5]} 15. Ba5 {[%clk 0:02:23.4]} 15... Qd5
{[%clk 0:02:41.4]} 16. Nf6+ {[%clk 0:02:21.8]} 16... Bxf6 {[%clk 0:02:41.2]} 17.
Bxd5 {[%clk 0:02:22.3]} 17... Nxd5 {[%clk 0:02:36]} 18. Qxb7 {[%clk 0:02:21.3]}
18... Rab8 {[%clk 0:02:33.9]} 19. Qxa7 {[%clk 0:02:06]} 19... Ra8 {[%clk
0:02:22.6]} 20. Qc5 {[%clk 0:01:57.5]} 20... Be7 {[%clk 0:02:22.7]} 21. Qxc6
{[%clk 0:01:53.2]} 21... Rxa5 {[%clk 0:02:19.7]} 22. a3 {[%clk 0:01:53.2]} 22...
h4 {[%clk 0:02:12.3]} 23. b4 {[%clk 0:01:46.2]} 23... Raa8 {[%clk 0:01:55.3]}
24. Rfc1 {[%clk 0:01:38.9]} 24... hxg3 {[%clk 0:01:48.5]} 25. hxg3 {[%clk
0:01:38.5]} 25... Be4 {[%clk 0:01:46.7]} 26. Qc4 {[%clk 0:01:33.5]} 26... g6
{[%clk 0:01:19]} 27. Qe2 {[%clk 0:01:30.9]} 27... Nf6 {[%clk 0:01:03.4]} 28. f3
{[%clk 0:01:28.8]} 28... Bd5 {[%clk 0:01:01.9]} 29. e4 {[%clk 0:01:28.7]} 29...
Bb3 {[%clk 0:01:02.2]} 30. Rc7 {[%clk 0:01:24.1]} 30... Bd8 {[%clk 0:00:59.5]}
31. Rc3 {[%clk 0:01:22.3]} 31... Bb6 {[%clk 0:00:57]} 32. Kg2 {[%clk 0:00:45.7]}
32... Bxd4 {[%clk 0:00:53.9]} 33. Qd2 {[%clk 0:00:45.6]} 33... e5 {[%clk
0:00:49.4]} 34. Rxb3 {[%clk 0:00:45.5]} 34... Bxa1 {[%clk 0:00:49.3]} 35. b5
{[%clk 0:00:44.7]} 35... Bd4 {[%clk 0:00:47.1]} 36. Qb4 {[%clk 0:00:24.9]} 36...
Rfb8 {[%clk 0:00:46.6]} 37. a4 {[%clk 0:00:24]} 37... Bb6 {[%clk 0:00:44.6]} 38.
Rd3 {[%clk 0:00:20.5]} 38... Bd4 {[%clk 0:00:31.4]} 39. f4 {[%clk 0:00:18.1]}
39... Ng4 {[%clk 0:00:20.6]} 40. Kf3 {[%clk 0:00:16.7]} 40... Nf6 {[%clk
0:00:17.6]} 41. Qd6 {[%clk 0:00:12.3]} 41... Ne8 {[%clk 0:00:16.9]} 42. Qb4
{[%clk 0:00:10.6]} 42... Bb6 {[%clk 0:00:14.3]} 43. fxe5 {[%clk 0:00:10.2]}
43... Ba5 {[%clk 0:00:14.6]} 44. Qc4 {[%clk 0:00:10.2]} 44... Ng7 {[%clk
0:00:14.8]} 45. Rd7 {[%clk 0:00:10.4]} 45... Ne6 {[%clk 0:00:15.2]} 46. Re7
{[%clk 0:00:10.5]} 46... Rc8 {[%clk 0:00:12.7]} 47. Qd5 {[%clk 0:00:09.2]} 47...
Rc3+ {[%clk 0:00:12.6]} 48. Kg4 {[%clk 0:00:09.2]} 48... Rac8 {[%clk 0:00:10.2]}
49. Qd7 {[%clk 0:00:07.9]} 49... Rf8 {[%clk 0:00:07.8]} 50. Rxe6 {[%clk
0:00:06.7]} 50... fxe6 {[%clk 0:00:08.7]} 51. Qxe6+ {[%clk 0:00:07.6]} 51... Kg7
{[%clk 0:00:09.4]} 52. Qd7+ {[%clk 0:00:04.6]} 52... Rf7 {[%clk 0:00:09.5]} 53.
Qd4 {[%clk 0:00:04.9]} 53... Rff3 {[%clk 0:00:08.1]} 54. e6+ {[%clk 0:00:05.3]}
54... Kh6 {[%clk 0:00:06.2]} 55. Qh8# {[%clk 0:00:05.3]} 1-0

[Event "Late-Titled-Tuesday-Blitz-October-03-2023"]
[Site "Chess.com"]
[Date "2023.10.03"]
[Round "6"]
[White "maksimys18"]
[Black "RETURNOFTHELAGGER"]
[Result "0-1"]
[WhiteElo "2521"]
[BlackElo "2678"]
[TimeControl "180+1"]
[EndTime "15:05:05 PDT"]
[Termination "RETURNOFTHELAGGER won by checkmate"]

1. d4 {[%clk 0:02:59.1]} 1... Nf6 {[%clk 0:03:00]} 2. Nf3 {[%clk 0:02:58.9]}
2... g6 {[%clk 0:02:59.6]} 3. c4 {[%clk 0:02:59]} 3... Bg7 {[%clk 0:02:58.8]} 4.
Nc3 {[%clk 0:02:59.1]} 4... d5 {[%clk 0:02:59.4]} 5. cxd5 {[%clk 0:02:59]} 5...
Nxd5 {[%clk 0:03:00]} 6. e4 {[%clk 0:02:59.7]} 6... Nxc3 {[%clk 0:02:59.2]} 7.
bxc3 {[%clk 0:03:00.6]} 7... O-O {[%clk 0:02:56]} 8. Be2 {[%clk 0:03:00.2]} 8...
c5 {[%clk 0:02:56.5]} 9. O-O {[%clk 0:03:00.2]} 9... b6 {[%clk 0:02:53.5]} 10.
Be3 {[%clk 0:02:56.7]} 10... cxd4 {[%clk 0:02:50.9]} 11. cxd4 {[%clk 0:02:56.6]}
11... Bb7 {[%clk 0:02:49.5]} 12. d5 {[%clk 0:02:56.2]} 12... Bxa1 {[%clk
0:02:43.4]} 13. Qxa1 {[%clk 0:02:57.1]} 13... f6 {[%clk 0:02:44.3]} 14. Nd4
{[%clk 0:02:55.7]} 14... Qd6 {[%clk 0:02:40.3]} 15. Ne6 {[%clk 0:02:52.9]} 15...
Rc8 {[%clk 0:02:37.7]} 16. Bf4 {[%clk 0:02:52.2]} 16... Qb4 {[%clk 0:02:22.8]}
17. d6 {[%clk 0:01:44.7]} 17... Nd7 {[%clk 0:01:18.5]} 18. Nc7 {[%clk
0:01:21.7]} 18... Rab8 {[%clk 0:01:11.8]} 19. Bg4 {[%clk 0:00:31.1]} 19... Qxe4
{[%clk 0:01:07.5]} 20. f3 {[%clk 0:00:30.8]} 20... Qxf4 {[%clk 0:01:04.5]} 21.
Bxd7 {[%clk 0:00:30.8]} 21... Qxd6 {[%clk 0:00:47.6]} 22. Be6+ {[%clk
0:00:26.1]} 22... Kg7 {[%clk 0:00:47.2]} 23. Bxc8 {[%clk 0:00:19.1]} 23... Rxc8
{[%clk 0:00:48.1]} 24. Nb5 {[%clk 0:00:17.9]} 24... Qc5+ {[%clk 0:00:48.3]} 25.
Nd4 {[%clk 0:00:16.7]} 25... e5 {[%clk 0:00:46.2]} 26. Kh1 {[%clk 0:00:15.7]}
26... Qxd4 {[%clk 0:00:45.3]} 27. Qb1 {[%clk 0:00:14]} 27... Rd8 {[%clk
0:00:43.3]} 28. Qb5 {[%clk 0:00:12.9]} 28... Qd3 {[%clk 0:00:40.6]} 29. Qxd3
{[%clk 0:00:13.1]} 29... Rxd3 {[%clk 0:00:41.5]} 30. Rc1 {[%clk 0:00:13.4]}
30... Rd7 {[%clk 0:00:39.3]} 31. h4 {[%clk 0:00:13.7]} 31... Kh6 {[%clk
0:00:39.6]} 32. Kh2 {[%clk 0:00:14.3]} 32... Kh5 {[%clk 0:00:40]} 33. Kg3 {[%clk
0:00:14.8]} 33... g5 {[%clk 0:00:37.5]} 34. hxg5 {[%clk 0:00:14.8]} 34... Kxg5
{[%clk 0:00:38.4]} 35. Rc4 {[%clk 0:00:14.4]} 35... h5 {[%clk 0:00:38.6]} 36. a4
{[%clk 0:00:13.8]} 36... Bd5 {[%clk 0:00:34.3]} 37. Rb4 {[%clk 0:00:14]} 37...
Be6 {[%clk 0:00:32.6]} 38. Kh2 {[%clk 0:00:13.7]} 38... Rd4 {[%clk 0:00:31.2]}
39. Rb2 {[%clk 0:00:11.3]} 39... Rxa4 {[%clk 0:00:31.3]} 40. Rc2 {[%clk
0:00:12]} 40... Rh4+ {[%clk 0:00:30.5]} 41. Kg3 {[%clk 0:00:12.1]} 41... Rc4
{[%clk 0:00:31.4]} 42. Rd2 {[%clk 0:00:11.6]} 42... h4+ {[%clk 0:00:31.5]} 43.
Kh2 {[%clk 0:00:11.7]} 43... h3 {[%clk 0:00:29]} 44. gxh3 {[%clk 0:00:11.6]}
44... Rh4 {[%clk 0:00:29.6]} 45. Rd6 {[%clk 0:00:10.8]} 45... Bxh3 {[%clk
0:00:29.3]} 46. Kg3 {[%clk 0:00:10.8]} 46... Bf5 {[%clk 0:00:25.3]} 47. Rd8
{[%clk 0:00:10.9]} 47... Rh3+ {[%clk 0:00:23.5]} 48. Kg2 {[%clk 0:00:11.3]}
48... Rh6 {[%clk 0:00:22.4]} 49. Kf2 {[%clk 0:00:11]} 49... Kf4 {[%clk
0:00:22.3]} 50. Ra8 {[%clk 0:00:08.5]} 50... Rh2+ {[%clk 0:00:21.1]} 51. Kg1
{[%clk 0:00:08.1]} 51... Ra2 {[%clk 0:00:21.6]} 52. Kf1 {[%clk 0:00:07.3]} 52...
Kxf3 {[%clk 0:00:20.2]} 53. Ke1 {[%clk 0:00:07.8]} 53... e4 {[%clk 0:00:19.5]}
54. Kd1 {[%clk 0:00:08.3]} 54... e3 {[%clk 0:00:19.7]} 55. Re8 {[%clk 0:00:08]}
55... e2+ {[%clk 0:00:18.7]} 56. Ke1 {[%clk 0:00:08.5]} 56... Ra1+ {[%clk
0:00:18.6]} 57. Kd2 {[%clk 0:00:09.2]} 57... Be4 {[%clk 0:00:14.7]} 58. Kc3
{[%clk 0:00:07.6]} 58... e1=Q+ {[%clk 0:00:14.7]} 59. Kd4 {[%clk 0:00:07.6]}
59... Qe3+ {[%clk 0:00:14.6]} 60. Kc4 {[%clk 0:00:08.1]} 60... Bd3+ {[%clk
0:00:14.8]} 61. Kb4 {[%clk 0:00:08.4]} 61... Qxe8 {[%clk 0:00:15.1]} 62. Kc3
{[%clk 0:00:08.9]} 62... Qe5+ {[%clk 0:00:15.1]} 63. Kd2 {[%clk 0:00:09.8]}
63... Ra2+ {[%clk 0:00:12.5]} 64. Kc1 {[%clk 0:00:09.7]} 64... Qb2+ {[%clk
0:00:12.1]} 65. Kd1 {[%clk 0:00:10.1]} 65... Qd2# {[%clk 0:00:12.1]} 0-1

[Event "Late-Titled-Tuesday-Blitz-October-03-2023"]
[Site "Chess.com"]
[Date "2023.10.03"]
[Round "6"]
[White "wild3000"]
[Black "Let_it_be_1"]
[Result "1/2-1/2"]
[WhiteElo "2417"]
[BlackElo "2619"]
[TimeControl "180+1"]
[EndTime "15:05:11 PDT"]
[Termination "Game drawn - insufficient material"]

1. Nf3 {[%clk 0:02:59.9]} 1... d5 {[%clk 0:03:00]} 2. e3 {[%clk 0:02:59.4]} 2...
Nf6 {[%clk 0:02:59.7]} 3. d4 {[%clk 0:02:58.6]} 3... e6 {[%clk 0:02:59.9]} 4.
Be2 {[%clk 0:02:58.3]} 4... Be7 {[%clk 0:03:00]} 5. O-O {[%clk 0:02:59.2]} 5...
O-O {[%clk 0:03:00.5]} 6. b3 {[%clk 0:02:59.7]} 6... Nbd7 {[%clk 0:02:59.8]} 7.
Bb2 {[%clk 0:03:00.6]} 7... c5 {[%clk 0:02:59.6]} 8. c4 {[%clk 0:03:00.1]} 8...
b6 {[%clk 0:02:58.7]} 9. Nc3 {[%clk 0:02:59.9]} 9... Bb7 {[%clk 0:02:58.8]} 10.
cxd5 {[%clk 0:02:59.5]} 10... Nxd5 {[%clk 0:02:57.8]} 11. Nxd5 {[%clk
0:02:58.2]} 11... Bxd5 {[%clk 0:02:57.7]} 12. Rc1 {[%clk 0:02:56.2]} 12... Bf6
{[%clk 0:02:55.1]} 13. Ne5 {[%clk 0:02:54.7]} 13... cxd4 {[%clk 0:02:54.4]} 14.
Nxd7 {[%clk 0:02:51.9]} 14... Qxd7 {[%clk 0:02:52.1]} 15. Bxd4 {[%clk
0:02:51.7]} 15... e5 {[%clk 0:02:42.3]} 16. Bb2 {[%clk 0:02:50.1]} 16... Rfd8
{[%clk 0:02:41.7]} 17. Qc2 {[%clk 0:02:11.3]} 17... Rac8 {[%clk 0:02:40.9]} 18.
Qb1 {[%clk 0:02:11.4]} 18... Qb7 {[%clk 0:02:40.2]} 19. f3 {[%clk 0:02:09.3]}
19... Bg5 {[%clk 0:02:38]} 20. Kf2 {[%clk 0:02:03.3]} 20... Qe7 {[%clk
0:02:17.1]} 21. Qf5 {[%clk 0:01:54.5]} 21... Rxc1 {[%clk 0:02:04.4]} 22. Rxc1
{[%clk 0:01:51.9]} 22... f6 {[%clk 0:02:03.9]} 23. g3 {[%clk 0:01:37.1]} 23...
Be6 {[%clk 0:01:54.6]} 24. Qc2 {[%clk 0:01:35.3]} 24... Rc8 {[%clk 0:01:51.7]}
25. Qd2 {[%clk 0:01:29.9]} 25... Rd8 {[%clk 0:01:39.5]} 26. Qc2 {[%clk
0:01:28.8]} 26... h5 {[%clk 0:01:37.3]} 27. h4 {[%clk 0:01:27.8]} 27... Bh6
{[%clk 0:01:37]} 28. Rd1 {[%clk 0:01:20.2]} 28... Rxd1 {[%clk 0:01:32.3]} 29.
Qxd1 {[%clk 0:01:19.5]} 29... Qc5 {[%clk 0:01:32.2]} 30. Qc1 {[%clk 0:01:14.4]}
30... Qd6 {[%clk 0:01:23]} 31. f4 {[%clk 0:01:11]} 31... exf4 {[%clk 0:01:21.1]}
32. gxf4 {[%clk 0:01:03.1]} 32... Bf7 {[%clk 0:00:53.3]} 33. Qc8+ {[%clk
0:00:54.3]} 33... Kh7 {[%clk 0:00:52.8]} 34. Bd4 {[%clk 0:00:46.9]} 34... Bg6
{[%clk 0:00:47.6]} 35. Qc4 {[%clk 0:00:36.3]} 35... Qd7 {[%clk 0:00:41.8]} 36.
Kg3 {[%clk 0:00:28.2]} 36... Qe7 {[%clk 0:00:37.1]} 37. Qd5 {[%clk 0:00:27.1]}
37... Qe8 {[%clk 0:00:33.9]} 38. Bc4 {[%clk 0:00:26.2]} 38... Be4 {[%clk
0:00:32.1]} 39. Qf7 {[%clk 0:00:26.2]} 39... Qxf7 {[%clk 0:00:27.9]} 40. Bxf7
{[%clk 0:00:26]} 40... Bg6 {[%clk 0:00:28.8]} 41. Be6 {[%clk 0:00:24.8]} 41...
Be4 {[%clk 0:00:27.2]} 42. b4 {[%clk 0:00:23.6]} 42... Kg6 {[%clk 0:00:25.5]}
43. b5 {[%clk 0:00:22.8]} 43... Bf5 {[%clk 0:00:21.8]} 44. Bc4 {[%clk
0:00:20.4]} 44... Be4 {[%clk 0:00:18.4]} 45. a4 {[%clk 0:00:19.8]} 45... Kf5
{[%clk 0:00:17]} 46. a5 {[%clk 0:00:19.9]} 46... bxa5 {[%clk 0:00:16.9]} 47.
Bxa7 {[%clk 0:00:20.8]} 47... g5 {[%clk 0:00:16.7]} 48. fxg5 {[%clk 0:00:18.5]}
48... fxg5 {[%clk 0:00:17]} 49. b6 {[%clk 0:00:17.5]} 49... gxh4+ {[%clk
0:00:16.6]} 50. Kxh4 {[%clk 0:00:17.6]} 50... Bxe3 {[%clk 0:00:17.1]} 51. Kxh5
{[%clk 0:00:14.2]} 51... a4 {[%clk 0:00:17.1]} 52. Bb8 {[%clk 0:00:08.5]} 52...
Bg5 {[%clk 0:00:15.8]} 53. Be6+ {[%clk 0:00:05.1]} 53... Kxe6 {[%clk 0:00:14.6]}
54. Kxg5 {[%clk 0:00:05.2]} 54... a3 {[%clk 0:00:15]} 55. Kf4 {[%clk 0:00:03.8]}
55... Bb7 {[%clk 0:00:14]} 56. Be5 {[%clk 0:00:04.7]} 56... a2 {[%clk 0:00:14]}
57. Bd4 {[%clk 0:00:04]} 57... Kd5 {[%clk 0:00:14.4]} 58. Ke3 {[%clk 0:00:04.4]}
58... Kc4 {[%clk 0:00:14.6]} 59. Ba1 {[%clk 0:00:04.7]} 59... Kb3 {[%clk
0:00:15]} 60. Bh8 {[%clk 0:00:05.2]} 60... Kc2 {[%clk 0:00:14.8]} 61. Bg7 {[%clk
0:00:05.1]} 61... Kb1 {[%clk 0:00:15.2]} 62. Bh8 {[%clk 0:00:05.4]} 62... a1=Q
{[%clk 0:00:15.7]} 63. Bxa1 {[%clk 0:00:05.6]} 63... Kxa1 {[%clk 0:00:16.6]} 64.
Kd4 {[%clk 0:00:06.2]} 64... Kb2 {[%clk 0:00:16]} 65. Kc5 {[%clk 0:00:07.1]}
65... Kb3 {[%clk 0:00:16.4]} 66. Kd6 {[%clk 0:00:08]} 66... Kc4 {[%clk
0:00:16.2]} 67. Kc7 {[%clk 0:00:08.9]} 67... Ba6 {[%clk 0:00:16.4]} 68. Kb8
{[%clk 0:00:09]} 68... Kb5 {[%clk 0:00:16.1]} 69. Ka7 {[%clk 0:00:09.9]} 69...
Bc8 {[%clk 0:00:15.3]} 70. b7 {[%clk 0:00:10.8]} 70... Bxb7 {[%clk 0:00:15.4]}
1/2-1/2

[Event "Late-Titled-Tuesday-Blitz-October-03-2023"]
[Site "Chess.com"]
[Date "2023.10.03"]
[Round "6"]
[White "Nf3c5"]
[Black "WindWhistler11"]
[Result "0-1"]
[WhiteElo "2585"]
[BlackElo "2474"]
[TimeControl "180+1"]
[EndTime "15:05:15 PDT"]
[Termination "WindWhistler11 won on time"]

1. d4 {[%clk 0:02:50.7]} 1... Nf6 {[%clk 0:02:58.8]} 2. c4 {[%clk 0:02:50.5]}
2... e6 {[%clk 0:02:59.4]} 3. Nc3 {[%clk 0:02:50.3]} 3... c5 {[%clk 0:03:00.1]}
4. d5 {[%clk 0:02:49.8]} 4... exd5 {[%clk 0:03:01]} 5. cxd5 {[%clk 0:02:50.5]}
5... Bd6 {[%clk 0:03:01.8]} 6. e4 {[%clk 0:02:51.2]} 6... O-O {[%clk 0:03:01.3]}
7. Bd3 {[%clk 0:02:48.3]} 7... Bc7 {[%clk 0:03:00.1]} 8. Nf3 {[%clk 0:02:46.1]}
8... d6 {[%clk 0:03:00.4]} 9. h3 {[%clk 0:02:44.6]} 9... a6 {[%clk 0:03:01.1]}
10. a4 {[%clk 0:02:44.1]} 10... Nbd7 {[%clk 0:03:01.7]} 11. O-O {[%clk
0:02:43.5]} 11... Re8 {[%clk 0:03:02.4]} 12. Bf4 {[%clk 0:02:40.5]} 12... Nf8
{[%clk 0:03:00.2]} 13. Bh2 {[%clk 0:02:24.4]} 13... Ng6 {[%clk 0:03:00.8]} 14.
Qd2 {[%clk 0:02:06.7]} 14... Rb8 {[%clk 0:02:57]} 15. Rfe1 {[%clk 0:02:02]}
15... Bd7 {[%clk 0:02:56.5]} 16. Rab1 {[%clk 0:01:57.6]} 16... b5 {[%clk
0:02:54.1]} 17. axb5 {[%clk 0:01:54.6]} 17... axb5 {[%clk 0:02:55]} 18. b4
{[%clk 0:01:55.1]} 18... c4 {[%clk 0:02:43.8]} 19. Bc2 {[%clk 0:01:53.5]} 19...
Nh5 {[%clk 0:02:35]} 20. Ra1 {[%clk 0:01:38.8]} 20... Qf6 {[%clk 0:02:27.7]} 21.
Qd4 {[%clk 0:01:23.8]} 21... Ne5 {[%clk 0:02:21.3]} 22. Nxe5 {[%clk 0:01:07.1]}
22... dxe5 {[%clk 0:02:20.3]} 23. Qd2 {[%clk 0:01:07.5]} 23... Bd6 {[%clk
0:02:14]} 24. Ra6 {[%clk 0:00:59.4]} 24... Qe7 {[%clk 0:02:07.3]} 25. Na2 {[%clk
0:00:58.3]} 25... Bc8 {[%clk 0:02:01.6]} 26. Ra5 {[%clk 0:00:56.4]} 26... Qf6
{[%clk 0:01:45.8]} 27. Bd1 {[%clk 0:00:53.8]} 27... Nf4 {[%clk 0:01:44.4]} 28.
Bg4 {[%clk 0:00:39.9]} 28... Qg5 {[%clk 0:01:36]} 29. Bxf4 {[%clk 0:00:31.9]}
29... exf4 {[%clk 0:01:32.9]} 30. Bxc8 {[%clk 0:00:31.4]} 30... Rexc8 {[%clk
0:01:30.2]} 31. e5 {[%clk 0:00:17.7]} 31... Bxe5 {[%clk 0:01:27.2]} 32. d6
{[%clk 0:00:18.3]} 32... Rd8 {[%clk 0:01:19.2]} 33. Qd5 {[%clk 0:00:17.3]} 33...
f3 {[%clk 0:01:10.3]} 34. Qxf3 {[%clk 0:00:15.5]} 34... Bxd6 {[%clk 0:01:02.9]}
35. Ra7 {[%clk 0:00:13]} 35... Rf8 {[%clk 0:00:59.2]} 36. Rd1 {[%clk 0:00:13.3]}
36... Be5 {[%clk 0:00:54.4]} 37. g3 {[%clk 0:00:12.7]} 37... Rbd8 {[%clk
0:00:49.1]} 38. Rxd8 {[%clk 0:00:11.7]} 38... Qxd8 {[%clk 0:00:50]} 39. Nc3
{[%clk 0:00:11.1]} 39... Bxc3 {[%clk 0:00:47.4]} 40. Qxc3 {[%clk 0:00:11.9]}
40... Qd5 {[%clk 0:00:43.4]} 41. Qe3 {[%clk 0:00:11]} 41... h6 {[%clk
0:00:41.6]} 42. Rc7 {[%clk 0:00:10.9]} 42... Ra8 {[%clk 0:00:40]} 43. Qe1 {[%clk
0:00:08.9]} 43... Qd4 {[%clk 0:00:36]} 44. Kg2 {[%clk 0:00:07.9]} 44... Kh7
{[%clk 0:00:33.1]} 45. Qe2 {[%clk 0:00:07.3]} 45... Qd5+ {[%clk 0:00:33.3]} 46.
Qf3 {[%clk 0:00:07.5]} 46... Qxf3+ {[%clk 0:00:31.5]} 47. Kxf3 {[%clk
0:00:08.4]} 47... Ra4 {[%clk 0:00:31.2]} 48. Rxf7 {[%clk 0:00:07.6]} 48... Rxb4
{[%clk 0:00:31.9]} 49. Rc7 {[%clk 0:00:08.5]} 49... Rb3+ {[%clk 0:00:28.9]} 50.
Ke4 {[%clk 0:00:08]} 50... Rb2 {[%clk 0:00:28.3]} 51. f4 {[%clk 0:00:08]} 51...
Rb3 {[%clk 0:00:27.9]} 52. g4 {[%clk 0:00:07.8]} 52... Rxh3 {[%clk 0:00:28.3]}
53. Rc5 {[%clk 0:00:08]} 53... Rb3 {[%clk 0:00:28.5]} 54. f5 {[%clk 0:00:08.9]}
54... c3 {[%clk 0:00:27]} 55. Rc7 {[%clk 0:00:09.3]} 55... Kg8 {[%clk
0:00:27.2]} 56. Ke5 {[%clk 0:00:09.1]} 56... b4 {[%clk 0:00:24.4]} 57. Ke6
{[%clk 0:00:09.5]} 57... Rb2 {[%clk 0:00:24.1]} 58. Rc8+ {[%clk 0:00:09.4]}
58... Kh7 {[%clk 0:00:23.7]} 59. f6 {[%clk 0:00:07.9]} 59... Re2+ {[%clk
0:00:23.2]} 60. Kf7 {[%clk 0:00:08.1]} 60... Rf2 {[%clk 0:00:23.1]} 61. g5
{[%clk 0:00:06.7]} 61... hxg5 {[%clk 0:00:15]} 62. Rc4 {[%clk 0:00:07.1]} 62...
Rxf6+ {[%clk 0:00:14.4]} 63. Ke7 {[%clk 0:00:07.8]} 63... Rf4 {[%clk 0:00:14.3]}
64. Rc8 {[%clk 0:00:06.7]} 64... Kg6 {[%clk 0:00:12.6]} 65. Ke6 {[%clk 0:00:07]}
65... Rf3 {[%clk 0:00:10.9]} 66. Ke5 {[%clk 0:00:07.1]} 66... b3 {[%clk
0:00:11]} 67. Ke4 {[%clk 0:00:07.2]} 67... b2 {[%clk 0:00:11.3]} 68. Rb8 {[%clk
0:00:06.3]} 68... Rf6 {[%clk 0:00:09.8]} 69. Rb3 {[%clk 0:00:05.8]} 69... c2
{[%clk 0:00:09.8]} 0-1

[Event "Late-Titled-Tuesday-Blitz-October-03-2023"]
[Site "Chess.com"]
[Date "2023.10.03"]
[Round "6"]
[White "Haykoooo0o"]
[Black "jimis98"]
[Result "0-1"]
[WhiteElo "2449"]
[BlackElo "2690"]
[TimeControl "180+1"]
[EndTime "15:05:17 PDT"]
[Termination "jimis98 won by resignation"]

1. d4 {[%clk 0:03:00.9]} 1... e6 {[%clk 0:01:55.2]} 2. Nf3 {[%clk 0:02:59.1]}
2... b6 {[%clk 0:01:54.9]} 3. e3 {[%clk 0:02:55.4]} 3... Ba6 {[%clk 0:01:55.1]}
4. Bd3 {[%clk 0:02:56.2]} 4... Bxd3 {[%clk 0:01:54.6]} 5. Qxd3 {[%clk
0:02:56.9]} 5... d5 {[%clk 0:01:55.3]} 6. Ne5 {[%clk 0:02:55.4]} 6... Nf6 {[%clk
0:01:55]} 7. Nd2 {[%clk 0:02:55.2]} 7... c5 {[%clk 0:01:54.9]} 8. Qb5+ {[%clk
0:02:51.8]} 8... Nbd7 {[%clk 0:01:54.5]} 9. Ndf3 {[%clk 0:02:42.2]} 9... a6
{[%clk 0:01:46.4]} 10. Qc6 {[%clk 0:02:31.1]} 10... Qc8 {[%clk 0:01:39.1]} 11.
Qxc8+ {[%clk 0:02:23.1]} 11... Rxc8 {[%clk 0:01:40]} 12. Nxd7 {[%clk 0:02:21.6]}
12... Nxd7 {[%clk 0:01:34.9]} 13. c3 {[%clk 0:02:18.3]} 13... Bd6 {[%clk
0:01:14.4]} 14. O-O {[%clk 0:02:13.2]} 14... f5 {[%clk 0:01:13.8]} 15. Bd2
{[%clk 0:02:03.4]} 15... h6 {[%clk 0:01:08.9]} 16. Rfc1 {[%clk 0:02:00.7]} 16...
c4 {[%clk 0:01:04.9]} 17. Ne1 {[%clk 0:01:55.9]} 17... g5 {[%clk 0:01:04.4]} 18.
f3 {[%clk 0:01:55.3]} 18... Nf6 {[%clk 0:01:03.9]} 19. Nc2 {[%clk 0:01:54.6]}
19... Kd7 {[%clk 0:01:03.8]} 20. h3 {[%clk 0:01:40.6]} 20... h5 {[%clk
0:01:03.8]} 21. Kf2 {[%clk 0:01:39.7]} 21... g4 {[%clk 0:01:04.1]} 22. hxg4
{[%clk 0:01:40.3]} 22... hxg4 {[%clk 0:01:05]} 23. Rh1 {[%clk 0:01:40.3]} 23...
Rcg8 {[%clk 0:00:57.5]} 24. Rag1 {[%clk 0:01:15.2]} 24... Rh2 {[%clk 0:00:52.7]}
25. Rxh2 {[%clk 0:01:09.9]} 25... g3+ {[%clk 0:00:53]} 26. Kf1 {[%clk
0:01:06.3]} 26... gxh2 {[%clk 0:00:53.9]} 27. Rh1 {[%clk 0:01:06.3]} 27... Nh5
{[%clk 0:00:50.8]} 28. Be1 {[%clk 0:01:03.9]} 28... Bg3 {[%clk 0:00:46]} 29. Bf2
{[%clk 0:00:55]} 29... b5 {[%clk 0:00:39.5]} 30. Na3 {[%clk 0:00:41.1]} 30...
Kc6 {[%clk 0:00:38.4]} 31. Nb1 {[%clk 0:00:40.9]} 31... a5 {[%clk 0:00:38.2]}
32. a3 {[%clk 0:00:39.4]} 32... b4 {[%clk 0:00:36.4]} 33. axb4 {[%clk
0:00:33.4]} 33... axb4 {[%clk 0:00:37.3]} 34. Ke2 {[%clk 0:00:23.4]} 34... Kb5
{[%clk 0:00:36.1]} 35. Nd2 {[%clk 0:00:22.9]} 35... Bd6 {[%clk 0:00:26.4]} 36.
f4 {[%clk 0:00:20.5]} 36... Rxg2 {[%clk 0:00:23.2]} 37. Kf3 {[%clk 0:00:20.3]}
37... Rg6 {[%clk 0:00:19.9]} 38. Rxh2 {[%clk 0:00:20.1]} 38... Nf6 {[%clk
0:00:20.8]} 39. Rh8 {[%clk 0:00:18.6]} 39... Ne4 {[%clk 0:00:14.1]} 40. Nxe4
{[%clk 0:00:18.5]} 40... fxe4+ {[%clk 0:00:15]} 41. Ke2 {[%clk 0:00:18.8]} 41...
b3 {[%clk 0:00:13.9]} 42. Re8 {[%clk 0:00:15.8]} 42... Kc6 {[%clk 0:00:13.8]}
43. Rc8+ {[%clk 0:00:11.5]} 43... Kd7 {[%clk 0:00:14.1]} 44. Ra8 {[%clk
0:00:11]} 44... Rh6 {[%clk 0:00:14]} 45. Kf1 {[%clk 0:00:09.9]} 45... Rh1+
{[%clk 0:00:13.5]} 46. Bg1 {[%clk 0:00:10.4]} 46... Rh3 {[%clk 0:00:13.4]} 47.
Kg2 {[%clk 0:00:09.4]} 47... Rh7 {[%clk 0:00:12.4]} 48. Bf2 {[%clk 0:00:09.4]}
48... Rg7+ {[%clk 0:00:11.4]} 49. Bg3 {[%clk 0:00:08.6]} 49... Rf7 {[%clk
0:00:10.8]} 50. Ra7+ {[%clk 0:00:08]} 50... Ke8 {[%clk 0:00:11]} 51. Ra8+ {[%clk
0:00:06.3]} 51... Kd7 {[%clk 0:00:09.2]} 52. Ra7+ {[%clk 0:00:06.3]} 52... Ke8
{[%clk 0:00:09.8]} 53. Ra8+ {[%clk 0:00:06.4]} 53... Ke7 {[%clk 0:00:10.5]} 54.
Bh4+ {[%clk 0:00:06]} 54... Kd7 {[%clk 0:00:11]} 55. Ra7+ {[%clk 0:00:05.3]}
55... Bc7 {[%clk 0:00:11.5]} 56. Bg3 {[%clk 0:00:03.5]} 56... Kc6 {[%clk
0:00:12]} 57. Ra6+ {[%clk 0:00:02.9]} 57... Bb6 {[%clk 0:00:11.4]} 58. Ra8
{[%clk 0:00:02.6]} 58... Ra7 {[%clk 0:00:11.1]} 59. Rxa7 {[%clk 0:00:02.2]}
59... Bxa7 {[%clk 0:00:12]} 60. Be1 {[%clk 0:00:02.1]} 60... Bb8 {[%clk
0:00:11.4]} 61. Kg3 {[%clk 0:00:02.3]} 61... Bd6 {[%clk 0:00:10.4]} 62. Kg2
{[%clk 0:00:02.7]} 62... Ba3 {[%clk 0:00:10.2]} 63. Bd2 {[%clk 0:00:03.1]} 63...
Bxb2 {[%clk 0:00:10.4]} 64. f5 {[%clk 0:00:03.5]} 64... Ba1 {[%clk 0:00:11.3]}
65. f6 {[%clk 0:00:03.1]} 65... Kd7 {[%clk 0:00:12]} 66. Bc1 {[%clk 0:00:02.5]}
66... Ke8 {[%clk 0:00:11.8]} 67. Ba3 {[%clk 0:00:02.5]} 67... Kf7 {[%clk
0:00:12.7]} 68. Kf2 {[%clk 0:00:02.5]} 68... b2 {[%clk 0:00:13.4]} 69. Bxb2
{[%clk 0:00:02.9]} 69... Bxb2 {[%clk 0:00:14.3]} 0-1